fUST/lending_fUST_20240826
["ID","MTS","AMOUNT","RATE_DAILY","PERIOD"]
[336009357,1724665847907,-1337.046321,0.00013414,2]
[336009358,1724665847918,-151.0,0.00013414,2]
[336009359,1724665847927,-302.572693,0.00013414,2]
[336009360,1724665847938,-151.0,0.00013414,2]
[336009361,1724665847949,-302.572693,0.00013414,2]
[336009362,1724665847959,-151.0,0.00013414,2]
[336009363,1724665847969,-236.426801,0.00013414,2]
[336009364,1724665847980,-189.8898,0.00013414,2]
[336009365,1724665847991,-189.8898,0.00013414,2]
[336009366,1724665848003,-151.0,0.00013414,2]
[336009367,1724665848013,-2293.492266,0.00013414,2]
[336009368,1724665848022,-2169.446621,0.00013414,2]
[336009369,1724665848033,-2293.492266,0.00013414,2]
[336009370,1724665848043,-2169.446621,0.00013414,2]
[336009371,1724665848054,-151.0,0.00013414,2]
[336009372,1724665848064,-151.0,0.00013414,2]
[336009373,1724665848078,-194.069755,0.00013415,2]
[336009374,1724665848088,-212.194252,0.00013415,2]
[336009375,1724665848098,-2315.501235,0.00013415,2]
[336009376,1724665848107,-2315.501235,0.00013415,2]
[336009377,1724665848117,-197.121202,0.00013415,2]
[336009378,1724665848128,-197.121202,0.00013415,2]
[336009379,1724665848138,-541.687518,0.00013415,2]
[336009380,1724665848149,-541.687518,0.00013415,2]
[336009381,1724665848159,-163.412381,0.00013415,2]
[336009382,1724665848168,-163.412381,0.00013415,2]
[336009383,1724665848178,-362.702659,0.00013415,2]
[336009384,1724665848188,-362.702659,0.00013415,2]
[336009385,1724665848199,-409.510685,0.00013415,2]
[336009386,1724665848208,-409.510685,0.00013415,2]
[336009387,1724665848218,-151.0,0.00013415,2]
[336009388,1724665848232,-1027.035089,0.00013415,2]
[336009389,1724665848242,-151.0,0.00013415,2]
[336009390,1724665848252,-1027.035089,0.00013415,2]
[336009391,1724665848262,-4551.840269,0.00013415,2]
[336009392,1724665848272,-4551.840269,0.00013415,2]
[336009393,1724665848282,-151.0,0.00013415,2]
[336009394,1724665848292,-463.663645,0.00013415,2]
[336009395,1724665848302,-151.0,0.00013415,2]
[336009396,1724665848312,-463.663645,0.00013415,2]
[336009397,1724665848322,-3087.008242,0.00013415,2]
[336009398,1724665848332,-151.0,0.00013415,2]
[336009399,1724665848341,-3087.008242,0.00013415,2]
[336009400,1724665848351,-151.0,0.00013415,2]
[336009401,1724665848361,-2726.791713,0.00013415,2]
[336009402,1724665848371,-2726.791713,0.00013415,2]
[336009403,1724665848381,-1770.406172,0.00013415,2]
[336009404,1724665848390,-1770.406172,0.00013415,2]
[336009405,1724665848400,-151.0,0.00013415,2]
[336009406,1724665848410,-1895.225,0.00013415,2]
[336009407,1724665848419,-1895.225,0.00013415,2]
[336009408,1724665848429,-151.0,0.00013415,2]
[336009409,1724665848439,-2808.025524,0.00013415,2]
[336009410,1724665848448,-2808.025524,0.00013415,2]
[336009411,1724665848458,-2169.446621,0.00013415,2]
[336009412,1724665848468,-2169.446621,0.00013415,2]
[336009413,1724665848478,-151.0,0.00013415,2]
[336009414,1724665848488,-791.866639,0.00013415,2]
[336009415,1724665848497,-791.866639,0.00013415,2]
[336009416,1724665848734,-151.0,0.00013415,2]
[336009417,1724665848744,-4210.20099519,0.00013424,5]
[336009418,1724665848755,-194.069755,0.00013424,2]
[336009419,1724665848764,-194.069755,0.00013424,2]
[336009420,1724665848773,-151.0,0.00013424,2]
[336009421,1724665848783,-151.0,0.00013424,2]
[336009422,1724665848792,-151.0,0.00013424,2]
[336009423,1724665848801,-212.194252,0.00013424,2]
[336009424,1724665848811,-212.194252,0.00013424,2]
[336009425,1724665848820,-2315.501235,0.00013424,2]
[336009426,1724665848830,-2315.501235,0.00013424,2]
[336009427,1724665848840,-197.121202,0.00013424,2]
[336009428,1724665848849,-197.121202,0.00013424,2]
[336009429,1724665848858,-197.121202,0.00013424,2]
[336009430,1724665848868,-197.121202,0.00013424,2]
[336009431,1724665848877,-541.687518,0.00013424,2]
[336009432,1724665848887,-541.687518,0.00013424,2]
[336009433,1724665848896,-541.687518,0.00013424,2]
[336009434,1724665848906,-541.687518,0.00013424,2]
[336009435,1724665848916,-151.0,0.00013424,2]
[336009436,1724665848925,-1194.645464,0.00013424,2]
[336009437,1724665848935,-1194.645464,0.00013424,2]
[336009438,1724665848944,-151.0,0.00013424,2]
[336009439,1724665848953,-186.573841,0.00013424,2]
[336009440,1724665848963,-5575.389502,0.00013424,2]
[336009441,1724665848972,-5575.389502,0.00013424,2]
[336009442,1724665848982,-4362.755286,0.00013424,2]
[336009443,1724665848992,-4362.755286,0.00013424,2]
[336009444,1724665849005,-1363.48231,0.00013424,2]
[336009445,1724665849014,-1363.48231,0.00013424,2]
[336009446,1724665849024,-2122.049147,0.00013424,2]
[336009447,1724665849035,-2122.049147,0.00013424,2]
[336009448,1724665849054,-1962.233129,0.00013424,2]
[336009449,1724665849065,-1962.233129,0.00013424,2]
[336009450,1724665849077,-151.0,0.00013424,2]
[336009451,1724665849087,-3095.377972,0.00013424,2]
[336009452,1724665849096,-3095.377972,0.00013424,2]
[336009453,1724665849106,-5425.544336,0.00013424,2]
[336009454,1724665849116,-5425.544336,0.00013424,2]
[336009455,1724665849126,-1337.046321,0.00013424,2]
[336009456,1724665849135,-1337.046321,0.00013424,2]
[336009457,1724665849145,-151.0,0.00013424,2]
[336009458,1724665849155,-302.572693,0.00013424,2]
[336009459,1724665849165,-151.0,0.00013424,2]
[336009460,1724665849175,-302.572693,0.00013424,2]
[336009461,1724665849184,-151.0,0.00013424,2]
[336009462,1724665849195,-189.8898,0.00013424,2]
[336009463,1724665849204,-189.8898,0.00013424,2]
[336009464,1724665849214,-151.0,0.00013424,2]
[336009465,1724665849226,-2293.492266,0.00013424,2]
[336009466,1724665849237,-2169.446621,0.00013424,2]
[336009467,1724665849247,-2293.492266,0.00013424,2]
[336009468,1724665849256,-2169.446621,0.00013424,2]
[336009469,1724665849266,-151.0,0.00013424,2]
[336009470,1724665849277,-372.551894,0.00013425,2]
[336009471,1724665849287,-32138.61755494,0.00013425,5]
[336009499,1724666961109,-425.25793634,9.801e-05,2]
[336009530,1724667032689,-2284.12528389,0.00011731,3]
[336009533,1724667032702,-209.91408405,0.00012163,2]
[336009535,1724667032714,-308.8390755,0.00012779,2]
[336009537,1724667032727,-1416.0,0.00012864,2]
[336009540,1724667032740,-290.70879956,0.00012898,2]
[336009542,1724667032754,-218.25620425,0.00012898,2]
[336009544,1724667032766,-515.02645281,0.00012934,2]
[336009547,1724667032780,-493.69395889,0.00012971,2]
[336009549,1724667032793,-154.90162513,0.00012971,2]
[336009551,1724667032805,-300.0,0.00012999,2]
[336009554,1724667032816,-249.54022521,0.00013,2]
[336009556,1724667032828,-1071.65,0.00013,2]
[336009660,1724667038819,-12068.08260488,0.00013,2]
[336009662,1724667038829,-1000.0,0.00013,13]
[336009663,1724667038839,-306.0,0.00013,2]
[336009664,1724667038848,-153.0,0.00013,2]
[336009665,1724667038858,-153.0,0.00013,2]
[336009666,1724667038867,-306.0,0.00013,2]
[336009667,1724667038881,-153.0,0.00013,2]
[336009668,1724667038890,-153.0,0.00013,2]
[336009669,1724667038900,-153.0,0.00013,2]
[336009670,1724667038910,-600.0,0.00013151,2]
[336009671,1724667038920,-6446.87754459,0.00013154,2]
[336009672,1724667038929,-465.00625879,0.00013208,2]
[336009673,1724667038938,-1082.95826177,0.00013224,2]
[336009674,1724667038952,-1082.95826176,0.00013252,2]
[336009675,1724667038962,-150.0,0.00013254,2]
[336009676,1724667038972,-522.0,0.00013254,2]
[336009677,1724667038988,-1082.95826176,0.0001328,2]
[336009678,1724667039001,-306.0,0.000133,2]
[336009679,1724667039014,-28240.7411975,0.00013305,2]
[336009680,1724667039024,-1082.95826176,0.00013307,2]
[336009681,1724667039035,-5721.62172679,0.00013309,2]
[336009682,1724667039049,-28240.7411975,0.00013315,2]
[336009683,1724667039061,-41302.27713535,0.00013315,2]
[336009712,1724667046657,-47585.72286465,0.00013315,2]
[336009713,1724667046668,-3000.0,0.00013324,2]
[336009714,1724667046678,-30000.0,0.00013325,2]
[336009715,1724667046687,-1082.95826176,0.00013335,2]
[336009716,1724667046696,-190.03459312,0.00013373,2]
[336009717,1724667046706,-200.03641383,0.00013373,2]
[336009718,1724667046715,-500.0,0.00013373,2]
[336009719,1724667046726,-390.33975893,0.00013373,2]
[336009720,1724667046735,-500.0,0.00013373,2]
[336009721,1724667046746,-500.0,0.00013373,2]
[336009722,1724667046756,-456.172518,0.00013396,2]
[336009723,1724667046767,-456.172518,0.00013396,2]
[336009724,1724667046775,-456.172518,0.00013396,2]
[336009725,1724667046786,-456.172518,0.00013396,2]
[336009726,1724667046796,-450.640034,0.00013396,2]
[336009727,1724667046805,-450.640034,0.00013396,2]
[336009728,1724667046814,-450.640034,0.00013396,2]
[336009729,1724667046825,-450.640034,0.00013396,2]
[336009730,1724667046836,-456.172518,0.00013404,2]
[336009731,1724667046847,-456.172518,0.00013404,2]
[336009732,1724667046858,-450.640034,0.00013404,2]
[336009733,1724667046868,-450.640034,0.00013404,2]
[336009734,1724667046879,-456.172518,0.00013414,2]
[336009735,1724667046888,-456.172518,0.00013414,2]
[336009736,1724667046897,-450.640034,0.00013414,2]
[336009737,1724667046906,-450.640034,0.00013414,2]
[336009738,1724667046917,-56481.4823951,0.00013415,2]
[336009739,1724667046926,-456.172518,0.00013415,2]
[336009740,1724667046936,-456.172518,0.00013415,2]
[336009741,1724667046945,-450.640034,0.00013415,2]
[336009742,1724667046954,-450.640034,0.00013415,2]
[336009743,1724667046964,-407.111012,0.00013425,2]
[336009744,1724667046974,-163.412381,0.00013425,2]
[336009745,1724667046983,-163.412381,0.00013425,2]
[336009746,1724667046992,-163.412381,0.00013425,2]
[336009747,1724667047001,-362.702659,0.00013425,2]
[336009748,1724667047010,-163.412381,0.00013425,2]
[336009749,1724667047019,-362.702659,0.00013425,2]
[336009750,1724667047029,-362.702659,0.00013425,2]
[336009751,1724667047038,-362.702659,0.00013425,2]
[336009752,1724667047047,-362.702659,0.00013425,2]
[336009753,1724667047058,-362.702659,0.00013425,2]
[336009754,1724667047071,-151.0,0.00013425,2]
[336009755,1724667047081,-151.0,0.00013425,2]
[336009756,1724667047091,-151.0,0.00013425,2]
[336009757,1724667047100,-151.0,0.00013425,2]
[336009758,1724667047110,-151.0,0.00013425,2]
[336009759,1724667047120,-151.0,0.00013425,2]
[336009760,1724667047130,-151.0,0.00013425,2]
[336009761,1724667047139,-151.0,0.00013425,2]
[336009762,1724667047149,-151.0,0.00013425,2]
[336009763,1724667047158,-151.0,0.00013425,2]
[336009764,1724667047168,-151.0,0.00013425,2]
[336009765,1724667047177,-151.0,0.00013425,2]
[336009766,1724667047188,-151.0,0.00013425,2]
[336009767,1724667047197,-151.0,0.00013425,2]
[336009768,1724667047206,-151.0,0.00013425,2]
[336009769,1724667047215,-151.0,0.00013425,2]
[336009770,1724667047225,-272.704319,0.00013425,2]
[336009771,1724667047234,-151.0,0.00013425,2]
[336009772,1724667047243,-152.684132,0.00013425,2]
[336009773,1724667047252,-151.0,0.00013425,2]
[336009774,1724667047261,-151.0,0.00013425,2]
[336009775,1724667047272,-151.0,0.00013425,2]
[336009776,1724667047282,-456.172518,0.00013425,2]
[336009777,1724667047292,-456.172518,0.00013425,2]
[336009778,1724667047302,-456.172518,0.00013425,2]
[336009779,1724667047311,-456.172518,0.00013425,2]
[336009780,1724667047321,-456.172518,0.00013425,2]
[336009781,1724667047331,-456.172518,0.00013425,2]
[336009782,1724667047341,-450.640034,0.00013425,2]
[336009783,1724667047357,-450.640034,0.00013425,2]
[336009784,1724667047366,-450.640034,0.00013425,2]
[336009785,1724667047376,-450.640034,0.00013425,2]
[336009786,1724667047386,-450.640034,0.00013425,2]
[336009787,1724667047397,-450.640034,0.00013425,2]
[336009788,1724667047406,-954.473097,0.00013425,2]
[336009789,1724667047415,-954.473097,0.00013425,2]
[336009790,1724667047426,-954.473097,0.00013425,2]
[336009791,1724667047436,-954.473097,0.00013425,2]
[336009792,1724667047448,-793.174585,0.00013425,2]
[336009793,1724667047459,-793.174585,0.00013425,2]
[336009794,1724667047469,-793.174585,0.00013425,2]
[336009795,1724667047479,-793.174585,0.00013425,2]
[336009796,1724667047489,-1376.09536,0.00013425,2]
[336009797,1724667047498,-1376.09536,0.00013425,2]
[336009798,1724667047508,-172.847523,0.00013425,2]
[336009799,1724667047518,-172.847523,0.00013425,2]
[336009800,1724667047527,-172.847523,0.00013425,2]
[336009801,1724667047537,-172.847523,0.00013425,2]
[336009802,1724667047548,-3345.233702,0.00013425,2]
[336009803,1724667047560,-3345.233702,0.00013425,2]
[336009804,1724667047570,-151.0,0.00013425,2]
[336009805,1724667047580,-1326.6575,0.00013425,2]
[336009806,1724667047590,-1273.229488,0.00013425,2]
[336009807,1724667047600,-1326.6575,0.00013425,2]
[336009808,1724667047610,-1273.229488,0.00013425,2]
[336009809,1724667047620,-264.744752,0.00013425,2]
[336009810,1724667047631,-151.0,0.00013425,2]
[336009811,1724667047640,-818.089386,0.00013425,2]
[336009812,1724667047650,-821.628072,0.00013425,2]
[336009813,1724667047659,-151.0,0.00013425,2]
[336009814,1724667047669,-821.628072,0.00013425,2]
[336009815,1724667047680,-151.0,0.00013425,2]
[336009816,1724667047689,-151.0,0.00013425,2]
[336009817,1724667047699,-171.23445,0.00013425,2]
[336009818,1724667047708,-2617.653171,0.00013425,2]
[336009819,1724667047717,-926.200494,0.00013425,2]
[336009820,1724667047728,-2617.653171,0.00013425,2]
[336009821,1724667047741,-926.200494,0.00013425,2]
[336009822,1724667047752,-151.0,0.00013425,2]
[336009823,1724667047763,-2158.29269682,0.00013425,2]
[336009824,1724667052804,270.54099897,0.0001188,7]
[336009837,1724667866110,200.0,0.00012,10]
[336009840,1724667941076,201.05895292,8.883e-05,2]
[336009857,1724668156138,-523.10250222,0.00010544,2]
[336009858,1724668156163,-2596.97571274,0.00010767,2]
[336010005,1724668237963,-161.354253,0.000119,2]
[336010006,1724668237973,-161.354253,0.00012003,2]
[336010007,1724668237983,-161.354253,0.00012107,2]
[336010009,1724668237992,-422.1184028,0.00012163,2]
[336010011,1724668238002,-161.354253,0.0001221,2]
[336010012,1724668238011,-161.354253,0.00012313,2]
[336010014,1724668238021,-161.354253,0.00012417,2]
[336010016,1724668238032,-161.354253,0.0001252,2]
[336010017,1724668238042,-300.0,0.00012656,2]
[336010018,1724668238052,-854.0224856,0.00012657,2]
[336010019,1724668238062,-205.1618425,0.00012657,2]
[336010020,1724668238073,-207.7743686,0.00012657,2]
[336010021,1724668238082,-904.1579392,0.00012657,2]
[336010022,1724668238091,-207.7743686,0.00012657,2]
[336010023,1724668238101,-153.0,0.00012678,2]
[336010024,1724668238110,-153.0,0.00012678,2]
[336010025,1724668238119,-153.0,0.00012778,2]
[336010026,1724668238129,-306.0,0.00012778,2]
[336010027,1724668238139,-153.0,0.00012865,2]
[336010028,1724668238148,-493.69395889,0.0001295,2]
[336010029,1724668238158,-3335.66781471,0.00013,2]
[336010030,1724668238167,-863.13231421,0.00013,2]
[336010031,1724668238176,-337.0669405,0.00013025,2]
[336010032,1724668238185,-254.24615238,0.00013025,2]
[336010033,1724668238194,-522.20650846,0.00013051,2]
[336010034,1724668238204,-946.94933392,0.00013161,2]
[336010035,1724668238217,-4774.67239287,0.00013161,2]
[336010036,1724668238226,-522.0,0.00013226,2]
[336010037,1724668238236,-1416.0,0.00013226,2]
[336010038,1724668238245,-1050.95013748,0.000133,2]
[336010039,1724668238258,-4590.06771401,0.000133,2]
[336010040,1724668238267,-154.76012181,0.00013333,2]
[336010041,1724668238278,-1513.43982516,0.00013345,2]
[336010047,1724668240044,-407.42081908,0.00013025,2]
[336010048,1724668240053,-52.98402752,0.00013345,2]
[336010049,1724668240063,-1950.1531866,0.00013348,2]
[336010050,1724668240075,-493.69633661,0.00013348,2]
[336010051,1724668240084,-7829.50366339,0.00013368,2]
[336010093,1724668926489,-300.0,0.00010958,2]
[336010094,1724668926526,-788.12,0.00010959,2]
[336010095,1724668926564,-271.24,0.00010959,2]
[336010096,1724668926601,-795.35,0.00010959,2]
[336010097,1724668926639,-662.79,0.00010959,2]
[336010098,1724668926677,-552.32,0.00010959,2]
[336010099,1724668926715,-460.27,0.00010959,2]
[336010100,1724668926752,-383.56,0.00010959,2]
[336010101,1724668951939,-2733.7336231,9.9e-05,2]
[336010103,1724668998256,-300.0,0.00010958,2]
[336010104,1724668998294,-319.63,0.00010959,2]
[336010105,1724668998332,-266.36,0.00010959,2]
[336010106,1724668998368,-221.97,0.00010959,2]
[336010107,1724668998404,-184.97,0.00010959,2]
[336010108,1724668998440,-154.14,0.00010959,2]
[336010109,1724668998476,-770.75,0.00010959,2]
[336010110,1724668998513,-1673.13629769,0.00010959,2]
[336010111,1724668998548,-201.51075773,0.00010959,2]
[336010112,1724668999485,28943.99383517,0.0002001,59]
[336010115,1724669139160,-8844.39705201,0.00011987,2]
[336010116,1724669139183,-300.0,0.00011999,2]
[336010117,1724669139208,-157.749529,0.00012052,2]
[336010118,1724669139232,-157.749529,0.00012115,2]
[336010119,1724669139257,-157.749529,0.00012178,2]
[336010120,1724669139281,-157.749529,0.00012241,2]
[336010121,1724669139305,-157.749529,0.00012303,2]
[336010122,1724669139329,-157.749529,0.00012366,2]
[336010123,1724669139354,-157.749529,0.00012429,2]
[336010124,1724669139383,-157.749529,0.00012492,2]
[336010125,1724669139409,-157.749529,0.00012555,2]
[336010126,1724669139431,-157.749529,0.00012617,2]
[336010127,1724669139455,-157.749529,0.0001268,2]
[336010128,1724669139481,-154.74467129,0.00012934,2]
[336010129,1724669139504,-493.69395889,0.00012971,2]
[336010130,1724669139527,-5943.1211406,0.00012971,2]
[336010131,1724669139550,-495.51686848,0.00012989,2]
[336010132,1724669139571,-863.13231421,0.00013,2]
[336010133,1724669139592,-818.13880886,0.00013051,2]
[336010134,1724669139613,-500.0,0.00013108,2]
[336010135,1724669139636,-500.0,0.00013108,2]
[336010136,1724669139657,-500.0,0.00013108,2]
[336010137,1724669139678,-5721.62172679,0.00013109,2]
[336010138,1724669139699,-465.00153059,0.00013175,2]
[336010139,1724669139721,-420.0,0.00013199,2]
[336010140,1724669139742,-1171.31789571,0.00013224,2]
[336010141,1724669139763,-522.0,0.00013227,2]
[336010142,1724669139786,-656.51,0.00013266,2]
[336010143,1724669139807,-505.20507271,0.00013266,2]
[336010144,1724669139828,-835.52,0.00013266,2]
[336010145,1724669139849,-2105.1004976,0.00013267,5]
[336010146,1724669139876,-19947.40300008,0.00013267,2]
[336010147,1724669139910,-65805.81929935,0.00013267,2]
[336010148,1724669139949,-1000.0,0.00013269,2]
[336010149,1724669139970,-500.0,0.0001327,2]
[336010150,1724669139991,-293.2909788,0.00013283,2]
[336010151,1724669140013,-1000.0,0.00013284,2]
[336010152,1724669140039,-1000.0,0.0001329,2]
[336010153,1724669140062,-1000.0,0.000133,2]
[336010154,1724669140088,-1000.0,0.00013302,2]
[336010155,1724669140117,-500.0,0.00013303,2]
[336010156,1724669140140,-670.82,0.00013303,2]
[336010158,1724669140162,-505.54478634,0.00013303,2]
[336010159,1724669140185,-500.0,0.00013303,2]
[336010160,1724669140207,-517.36,0.00013303,2]
[336010161,1724669140239,-500.0,0.00013303,2]
[336010162,1724669140274,-500.0,0.00013303,2]
[336010163,1724669140297,-500.0,0.00013303,2]
[336010164,1724669140321,-500.0,0.00013303,2]
[336010165,1724669140346,-500.0,0.00013303,2]
[336010166,1724669140370,-408.34128169,0.00013303,2]
[336010167,1724669143101,-500.0,0.00013108,2]
[336010168,1724669143125,-500.0,0.00013108,2]
[336010169,1724669143147,-91.65871831,0.00013303,2]
[336010170,1724669143168,-996.8,0.00013303,2]
[336010171,1724669143190,-1043.09,0.00013303,2]
[336010172,1724669143217,-500.0,0.00013303,2]
[336010173,1724669143240,-500.0,0.00013303,2]
[336010174,1724669143262,-500.0,0.00013303,2]
[336010175,1724669143284,-943.65,0.00013303,2]
[336010176,1724669143306,-569.28,0.00013303,2]
[336010177,1724669143328,-500.0,0.00013303,2]
[336010178,1724669143350,-679.12,0.00013303,2]
[336010179,1724669143372,-500.0,0.00013303,2]
[336010180,1724669143399,-837.45,0.00013303,2]
[336010181,1724669143421,-500.0,0.00013303,2]
[336010182,1724669143444,-500.0,0.00013303,2]
[336010183,1724669143469,-500.0,0.00013303,2]
[336010184,1724669143491,-500.0,0.00013303,2]
[336010185,1724669143514,-566.93,0.00013303,2]
[336010186,1724669143536,-500.0,0.00013303,2]
[336010187,1724669143563,-767.01,0.00013303,2]
[336010188,1724669143585,-500.0,0.00013303,2]
[336010189,1724669143609,-517.91,0.00013303,2]
[336010190,1724669143632,-500.0,0.00013303,2]
[336010191,1724669143656,-1042.17,0.00013303,2]
[336010192,1724669143679,-641.06,0.00013303,2]
[336010193,1724669143700,-500.0,0.00013303,2]
[336010194,1724669143723,-708.09,0.00013303,2]
[336010195,1724669143745,-1061.0,0.00013303,2]
[336010196,1724669143767,-500.0,0.00013303,2]
[336010197,1724669143789,-500.0,0.00013303,2]
[336010198,1724669143812,-878.03,0.00013303,2]
[336010199,1724669143833,-500.0,0.00013303,2]
[336010200,1724669143856,-882.76,0.00013303,2]
[336010201,1724669143877,-500.0,0.00013303,2]
[336010202,1724669143898,-429.91418371,0.00013303,2]
[336010203,1724669143920,-990.16,0.00013303,2]
[336010204,1724669143942,-510.13552791,0.00013303,2]
[336010205,1724669143964,-500.0,0.00013303,2]
[336010206,1724669143985,-901.21,0.00013303,2]
[336010207,1724669144006,-500.0,0.00013303,2]
[336010208,1724669144027,-757.26,0.00013303,2]
[336010209,1724669144053,-2052.61786069,0.00013303,2]
[336010214,1724669219102,-1003.65600695,0.00012942,2]
[336010216,1724669225283,-4598.7652672,0.00012942,2]
[336010217,1724669225306,-300.0,0.00013107,2]
[336010218,1724669225328,-500.0,0.00013108,2]
[336010219,1724669225351,-500.0,0.00013108,2]
[336010220,1724669225372,-500.0,0.00013108,2]
[336010221,1724669225395,-500.0,0.00013108,2]
[336010222,1724669225416,-715.15,0.00013108,2]
[336010223,1724669225438,-500.0,0.00013108,2]
[336010224,1724669225459,-500.0,0.00013108,2]
[336010225,1724669225479,-507.93575943,0.00013108,2]
[336010226,1724669225500,-500.0,0.00013108,2]
[336010227,1724669225522,-500.0,0.00013108,2]
[336010228,1724669225543,-500.0,0.00013108,2]
[336010229,1724669225565,-677.79,0.00013108,2]
[336010230,1724669225587,-500.0,0.00013108,2]
[336010231,1724669225607,-500.0,0.00013108,2]
[336010232,1724669225628,-500.0,0.00013108,2]
[336010233,1724669225650,-500.0,0.00013108,2]
[336010234,1724669225671,-500.0,0.00013108,2]
[336010235,1724669225694,-1000.0,0.0001325,2]
[336010236,1724669225719,-955.26,0.00013266,2]
[336010237,1724669225742,-500.0,0.00013266,2]
[336010238,1724669225766,-500.0,0.00013266,2]
[336010239,1724669225787,-545.56,0.00013266,2]
[336010240,1724669225808,-500.0,0.00013266,2]
[336010241,1724669225833,-802.56,0.00013266,2]
[336010242,1724669225857,-1000.0,0.00013298,2]
[336010243,1724669225881,-8184.63934382,0.00013303,2]
[336010267,1724669407278,-836.47866191,0.00012989,2]
[336010268,1724669407301,-487.53066069,0.00013025,2]
[336010269,1724669407323,-695.14803561,0.00013025,2]
[336010270,1724669407347,-300.0,0.00013107,2]
[336010271,1724669407369,-500.0,0.00013108,2]
[336010272,1724669407391,-500.0,0.00013108,2]
[336010273,1724669407413,-180.84264179,0.00013108,2]
[336010338,1724669432056,-319.15735821,0.00013108,2]
[336010339,1724669432066,-500.0,0.00013108,2]
[336010340,1724669432077,-500.0,0.00013108,2]
[336010341,1724669432087,-500.0,0.00013108,2]
[336010342,1724669432097,-500.0,0.00013108,2]
[336010343,1724669432107,-500.0,0.00013108,2]
[336010344,1724669432116,-500.0,0.00013108,2]
[336010345,1724669432126,-500.0,0.00013108,2]
[336010346,1724669432140,-500.0,0.00013108,2]
[336010347,1724669432150,-500.0,0.00013108,2]
[336010348,1724669432160,-500.0,0.00013108,2]
[336010349,1724669432170,-150.0,0.00013108,2]
[336010350,1724669432182,-500.0,0.00013108,2]
[336010351,1724669432193,-500.0,0.00013108,2]
[336010352,1724669432203,-500.0,0.00013108,2]
[336010353,1724669432214,-500.0,0.00013108,2]
[336010354,1724669432223,-500.0,0.00013108,2]
[336010355,1724669432233,-500.0,0.00013108,2]
[336010356,1724669432243,-572.73,0.00013108,2]
[336010357,1724669432253,-500.0,0.00013108,2]
[336010358,1724669432263,-526.04,0.00013108,2]
[336010359,1724669432273,-479.25993232,0.00013108,2]
[336010360,1724669432283,-500.0,0.00013108,2]
[336010361,1724669432294,-500.0,0.00013108,2]
[336010362,1724669432305,-592.17030188,0.00013108,2]
[336010363,1724669432317,-500.0,0.00013108,2]
[336010364,1724669432327,-500.0,0.00013108,2]
[336010365,1724669432338,-500.0,0.00013108,2]
[336010366,1724669432350,-500.0,0.00013108,2]
[336010367,1724669432361,-500.0,0.00013108,2]
[336010368,1724669432371,-500.0,0.00013108,2]
[336010369,1724669432380,-500.0,0.00013215,2]
[336010370,1724669432390,-642.87,0.00013215,2]
[336010371,1724669432399,-9654.58461742,0.00013216,2]
[336010372,1724669432412,-13055.3223278,0.00013216,2]
[336010373,1724669432430,-848.77109088,0.00013216,2]
[336010388,1724669438283,-500.0,0.00013108,2]
[336010390,1724669438293,-2669.34334981,0.00013216,2]
[336010391,1724669438304,-62659.97861409,0.00013216,2]
[336010392,1724669438314,-150.084,0.00013227,2]
[336010393,1724669438323,-374.18117236,0.00013262,2]
[336010394,1724669438333,-500.0,0.00013266,2]
[336010395,1724669438342,-735.05,0.00013266,2]
[336010396,1724669438351,-599.92,0.00013266,2]
[336010397,1724669438361,-543.3,0.00013266,2]